bitfinex-derivatives/quotes_BTCF0:USTF0_20210409
["timestamp","ask_amount","ask_price","bid_price","bid_amount"]
[1617953740723,0.30490651,57868.0,57867.0,1.0]
[1617953740924,0.44747301,57874.0,57867.0,1.0]
[1617953741124,0.44747301,57874.0,57868.0,1.0]
[1617953741325,0.44747301,57874.0,57873.0,0.10725655]
[1617953741525,0.44747301,57874.0,57873.0,0.22677655]
[1617953741725,0.67126181,57874.0,57873.0,0.23677655]
[1617953742025,0.67126181,57874.0,57873.0,3.55107655]
[1617953744832,1.11873284,57874.0,57873.0,3.55107655]
[1617953745731,0.67126181,57874.0,57873.0,3.55107655]
[1617953746231,0.91769851,57874.0,57873.0,3.55107655]
[1617953746632,0.67126181,57874.0,57873.0,3.55107655]
[1617953746931,0.91769856,57874.0,57873.0,3.55107655]
[1617953747532,0.67126181,57874.0,57873.0,3.55107655]
[1617953747734,0.58984751,57874.0,57873.0,3.55107655]
[1617953747935,1.28484061,57874.0,57873.0,3.55107655]
[1617953748335,1.03840375,57874.0,57873.0,3.55107655]
[1617953749256,1.18566375,57874.0,57873.0,0.23677655]
[1617953749436,4.80856375,57874.0,57873.0,0.11725655]
[1617953749644,5.05500301,57874.0,57873.0,0.11725655]
[1617953750037,5.42467105,57874.0,57873.0,0.11725655]
[1617953750537,5.93445808,57874.0,57873.0,0.11725655]
[1617953753539,2.31155808,57874.0,57873.0,0.11725655]
[1617953754141,1.94189004,57874.0,57873.0,2.92285655]
[1617953755842,1.71817609,57874.0,57873.0,2.92285655]
[1617953756240,1.57091609,57874.0,57873.0,2.92285655]
[1617953756743,0.8146898,57874.0,57873.0,2.92285655]
[1617953760244,0.8146898,57874.0,57873.0,3.03980655]
[1617953760446,1.32456349,57874.0,57873.0,3.03980655]
[1617953760846,0.8146898,57874.0,57873.0,3.03980655]
[1617953761244,1.06113614,57874.0,57873.0,3.03980655]
[1617953761744,0.8146898,57874.0,57873.0,3.03980655]
[1617953762245,1.06113216,57874.0,57873.0,3.03980655]
[1617953762545,0.8146898,57874.0,57873.0,3.03980655]
[1617953762743,0.8146898,57874.0,57873.0,2.92285655]
[1617953763445,0.10725655,57877.0,57873.0,0.11725655]
[1617953763744,0.10725655,57877.0,57875.0,2.4956]
[1617953764145,0.10725655,57877.0,57876.0,0.02356673]
[1617953764945,0.92331651,57877.0,57876.0,0.02356673]
[1617953765749,1.43546456,57877.0,57876.0,0.02356673]
[1617953767250,1.43546456,57877.0,57876.0,2.75656673]
[1617953767550,1.80511481,57877.0,57876.0,2.75656673]
[1617953772555,1.43546456,57877.0,57876.0,2.75656673]
[1617953777962,1.74282157,57877.0,57876.0,2.75656673]
[1617953778965,0.92676161,57877.0,57876.0,2.75656673]
[1617953779265,1.74631216,57877.0,57876.0,2.75656673]
[1617953780163,1.99274677,57877.0,57876.0,2.75656673]
[1617953781263,1.99274677,57877.0,57876.0,2.80796673]
[1617953783269,1.99274677,57877.0,57876.0,0.07496673]
[1617953783469,4.84584677,57877.0,57876.0,0.02356673]
[1617953784169,5.21550026,57877.0,57876.0,0.02356673]
[1617953784470,5.21550026,57877.0,57876.0,0.07466673]
[1617953784980,5.21550026,57877.0,57876.0,0.02356673]
[1617953787580,2.36240026,57877.0,57876.0,0.02356673]
[1617953787975,2.36240026,57877.0,57876.0,3.72146673]
[1617953788178,2.56732179,57877.0,57876.0,3.72146673]
[1617953799492,1.99274677,57877.0,57876.0,3.72146673]
[1617953799890,2.56728645,57877.0,57876.0,3.72146673]
[1617953801294,1.99274677,57877.0,57876.0,3.72146673]
[1617953801691,2.4600259,57877.0,57876.0,3.72146673]
[1617953802093,2.21359129,57877.0,57876.0,3.72146673]
[1617953802292,2.32084784,57877.0,57876.0,3.82872328]
[1617953803094,2.567266,57877.0,57876.0,3.82872328]
[1617953807894,1.99273032,57877.0,57876.0,3.82872328]
[1617953810699,2.567457,57877.0,57876.0,3.82872328]
[1617953811412,2.567457,57877.0,57876.0,3.95718328]
[1617953812804,1.99273032,57877.0,57876.0,3.95718328]
[1617953816106,4.89773032,57877.0,57876.0,3.95718328]
[1617953816305,4.79047377,57877.0,57876.0,3.95718328]
[1617953816605,5.16009887,57877.0,57876.0,3.95718328]
[1617953817306,2.25509887,57877.0,57876.0,3.95718328]
[1617953818106,1.63905561,57877.0,57876.0,3.95718328]
[1617953822112,1.63905561,57877.0,57876.0,0.25928328]
[1617953822514,1.63905561,57877.0,57876.0,0.13082328]
[1617953822714,4.96225561,57877.0,57876.0,0.13082328]
[1617953823015,4.96225561,57877.0,57876.0,3.71212328]
[1617953823516,5.57829408,57877.0,57876.0,3.71212328]
[1617953825018,5.57829408,57877.0,57876.0,3.86479328]
[1617953825220,5.57829408,57877.0,57876.0,4.17106051]
[1617953826022,5.57829408,57877.0,57876.0,4.22246051]
[1617953826721,5.57829408,57877.0,57876.0,4.17106051]
[1617953828923,2.25509408,57877.0,57876.0,4.17106051]
[1617953829522,1.63905561,57877.0,57876.0,4.17106051]
[1617953830523,1.63905561,57877.0,57876.0,0.58976051]
[1617953830725,4.28075561,57877.0,57876.0,0.43709051]
[1617953831324,4.89678743,57877.0,57876.0,0.43709051]
[1617953833929,2.25508743,57877.0,57876.0,0.13082328]
[1617953834430,1.63905561,57877.0,57876.0,3.38672328]
[1617953834829,1.88545506,57877.0,57876.0,3.69301687]
[1617953835229,1.63905561,57877.0,57876.0,3.69301687]
[1617953835630,1.885455,57877.0,57876.0,3.69301687]
[1617953836230,1.63905561,57877.0,57876.0,3.69301687]
[1617953836430,1.8854541,57877.0,57876.0,0.43711687]
[1617953836630,4.4453541,57877.0,57876.0,0.43711687]
[1617953837032,4.19895561,57877.0,57876.0,0.13082328]
[1617953837536,4.81496111,57877.0,57876.0,0.13082328]
[1617953838437,2.36231766,57877.0,57876.0,0.13082328]
[1617953838934,2.36231766,57877.0,57876.0,3.09812328]
[1617953838935,1.99271436,57877.0,57876.0,3.09812328]
[1617953849346,1.99271436,57877.0,57876.0,0.13082328]
[1617953850350,5.48611436,57877.0,57876.0,0.13082328]
[1617953851051,5.85572188,57877.0,57876.0,0.13082328]
[1617953854054,2.36232188,57877.0,57876.0,0.13082328]
[1617953854463,2.36232188,57877.0,57876.0,3.80782328]
[1617953854664,1.99271436,57877.0,57876.0,3.80782328]
[1617953860162,2.56745583,57877.0,57876.0,3.80782328]
[1617953863609,2.46019928,57877.0,57876.0,3.94895328]
[1617953863788,1.74225781,57877.0,57876.0,4.94895328]
[1617953863966,1.74225781,57877.0,57876.0,5.14895328]
[1617953863967,1.66635781,57877.0,57876.0,5.14895328]
[1617953864368,1.62365781,57877.0,57876.0,5.14895328]
[1617953864568,1.62365781,57877.0,57876.0,6.32198326]
[1617953864569,1.30430976,57877.0,57876.0,6.32198326]
[1617953865069,0.607165,57877.0,57876.0,6.32198326]
[1617953865368,0.85350561,57877.0,57876.0,2.64498326]
[1617953865577,0.85350561,57877.0,57876.0,5.93688326]
[1617953865768,0.85350561,57877.0,57876.0,5.88558326]
[1617953865970,0.607165,57877.0,57876.0,5.88558326]
[1617953866269,0.85349872,57877.0,57876.0,2.68605841]
[1617953866469,0.85349872,57877.0,57876.0,5.41385841]
[1617953866873,0.607165,57877.0,57876.0,5.32148326]
[1617953867369,0.8534977,57877.0,57876.0,5.41385802]
[1617953867670,0.607165,57877.0,57876.0,5.41385802]
[1617953868201,0.23835701,57877.0,57876.0,2.68605802]
[1617953868577,0.10795701,57877.0,57876.0,2.68605802]
[1617953868783,0.3685492,57880.0,57876.0,2.59368326]
[1617953869177,0.3685492,57880.0,57878.0,1.0]
[1617953869372,0.3685492,57880.0,57879.0,1.2]
[1617953869571,0.3685492,57880.0,57879.0,1.83599136]
[1617953869872,0.3685492,57880.0,57879.0,1.89757404]
[1617953870374,0.3685492,57880.0,57879.0,1.94947404]
[1617953875086,0.36845825,57881.0,57879.0,1.89757404]
[1617953875487,0.45033169,57885.0,57884.0,1.0]
[1617953875688,0.45033169,57885.0,57884.0,3.1567]
[1617953875888,0.81879777,57885.0,57884.0,4.1867]
[1617953876588,0.81879777,57885.0,57884.0,4.29395655]
[1617953876788,0.36846608,57885.0,57884.0,4.29395655]
[1617953876988,0.36846608,57885.0,57884.0,4.09395655]
[1617953877390,0.36846608,57885.0,57884.0,4.45970246]
[1617953877690,0.61477686,57885.0,57884.0,4.45970246]
[1617953878091,0.36846608,57885.0,57884.0,4.45970246]
[1617953878593,0.36846608,57885.0,57884.0,4.09395655]
[1617953880194,0.36801299,57886.0,57884.0,4.09395655]
[1617953880496,0.61432741,57885.0,57884.0,0.13725655]
[1617953880999,0.36791075,57886.0,57884.0,0.13725655]
[1617953881195,0.36791075,57886.0,57885.0,3.0438]
[1617953881396,0.36790785,57887.0,57885.0,4.10537725]
[1617953881596,0.36790785,57887.0,57885.0,1.33157725]
[1617953881796,0.36330785,57887.0,57885.0,0.33157725]
[1617953882002,0.36330785,57887.0,57885.0,0.27]
[1617953882197,0.36330785,57887.0,57886.0,4.6577]
[1617953882400,0.44964599,57891.0,57886.0,4.6577]
[1617953882704,0.44964599,57891.0,57890.0,1.10725655]
[1617953882898,0.44964599,57891.0,57890.0,1.23531655]
[1617953883100,0.69594725,57892.0,57891.0,3.2038]
[1617953883501,0.51093804,57897.0,57892.0,0.03]
[1617953883800,0.44963104,57893.0,57891.0,1.27]
[1617953884000,0.44963104,57893.0,57892.0,3.6858]
[1617953884201,0.10725655,57898.0,57892.0,3.7158]
[1617953884202,0.61819121,57898.0,57892.0,3.7158]
[1617953884602,0.4496359,57893.0,57892.0,3.7158]
[1617953886703,0.4496359,57893.0,57892.0,3.82305655]
[1617953887607,0.4496359,57893.0,57892.0,4.82305655]
[1617953887806,0.44963266,57894.0,57892.0,4.82305655]
[1617953888005,0.44963266,57894.0,57892.0,1.13725655]
[1617953888207,0.24630753,57897.0,57893.0,1.0]
[1617953888406,3.6676,57895.0,57893.0,2.8119]
[1617953888607,3.6676,57895.0,57894.0,0.27]
[1617953888907,0.24630753,57897.0,57894.0,0.27]
[1617953889209,1.06536514,57895.0,57894.0,1.27]
[1617953889406,1.06536514,57895.0,57894.0,2.7024]
[1617953889708,0.44962142,57895.0,57894.0,3.7024]
[1617953890208,0.44962142,57895.0,57894.0,3.9724]
[1617953890607,0.44936985,57896.0,57894.0,3.9724]
[1617953890807,0.44936985,57896.0,57895.0,1.0]
[1617953891211,0.40596985,57896.0,57895.0,1.03]
[1617953891415,0.38286985,57896.0,57895.0,1.03]
[1617953891607,0.38286985,57896.0,57895.0,0.03]
[1617953891808,0.37816985,57896.0,57895.0,0.03]
[1617953892008,0.37816985,57896.0,57895.0,1.03]
[1617953893809,0.24629037,57903.0,57895.0,1.03]
[1617953893810,0.75680502,57903.0,57895.0,1.03]
[1617953894011,0.75680502,57903.0,57896.0,1.0]
[1617953894309,0.75680502,57903.0,57895.0,1.03]
[1617953894310,0.51051465,57903.0,57895.0,1.03]
[1617953894510,0.51051465,57903.0,57897.0,0.27]
[1617953894711,0.51051465,57903.0,57895.0,0.03]
[1617953895011,0.75680537,57903.0,57896.0,0.27]
[1617953895313,0.75680537,57903.0,57895.0,1.03]
[1617953895712,0.75680537,57903.0,57896.0,0.27]
[1617953896114,0.75680537,57903.0,57897.0,1.0]
[1617953896513,0.75680537,57903.0,57899.0,1.0]
[1617953897015,0.75680537,57903.0,57902.0,0.21720655]
[1617953897414,0.75680537,57903.0,57902.0,0.48720655]
[1617953898422,0.51051465,57903.0,57902.0,0.48720655]
[1617953899024,0.30634881,57903.0,57902.0,0.48720655]
[1617953899526,0.5526365,57903.0,57902.0,0.48720655]
[1617953900020,0.5526365,57903.0,57902.0,3.39510655]
[1617953905527,0.5526365,57903.0,57902.0,0.48720655]
[1617953906128,3.1091365,57903.0,57902.0,0.48720655]
[1617953906530,2.86284881,57903.0,57902.0,0.48720655]
[1617953906731,3.23227874,57903.0,57902.0,0.48720655]
[1617953907131,3.59990308,57903.0,57902.0,0.48720655]
[1617953907333,1.04340308,57903.0,57902.0,0.48720655]
[1617953907533,1.04340308,57903.0,57902.0,3.74930655]
[1617953908134,0.67397315,57903.0,57902.0,3.74930655]
[1617953908636,0.92025953,57903.0,57902.0,3.74930655]
[1617953909137,0.67397315,57903.0,57902.0,3.74930655]
[1617953910438,0.92025618,57903.0,57902.0,3.74930655]
[1617953912038,1.36954319,57903.0,57902.0,3.74930655]
[1617953914240,1.36954319,57903.0,57902.0,4.74930655]
[1617953914542,1.36954319,57903.0,57902.0,3.74930655]
[1617953916444,1.88131968,57903.0,57902.0,3.74930655]
[1617953916643,1.63503665,57903.0,57902.0,3.74930655]
[1617953916844,1.63503665,57903.0,57902.0,4.74930655]
[1617953917042,1.63503665,57903.0,57902.0,3.74930655]
[1617953917243,1.88132057,57903.0,57902.0,4.74930655]
[1617953917443,1.88132057,57903.0,57902.0,3.74930655]
[1617953917644,1.63503665,57903.0,57902.0,4.74930655]
[1617953917946,1.36953252,57903.0,57902.0,4.74930655]
[1617953918445,1.36953252,57903.0,57902.0,5.05318446]
[1617953918847,1.36953252,57903.0,57902.0,5.25318446]
[1617953919446,1.12326016,57903.0,57902.0,5.25318446]
[1617953919746,1.36952864,57903.0,57902.0,5.25318446]
[1617953919945,1.36952864,57903.0,57902.0,5.05318446]
[1617953920147,1.12326016,57903.0,57902.0,5.05318446]
[1617953924355,0.67397315,57903.0,57902.0,5.05318446]
[1617953925461,0.10725655,57910.0,57902.0,4.74930655]
[1617953925857,0.10725655,57910.0,57903.0,1.0]
[1617953926057,0.45005076,57904.0,57903.0,1.30361235]
[1617953926460,1.12517768,57904.0,57903.0,1.31361235]
[1617953926657,1.12517768,57904.0,57903.0,0.31361235]
[1617953927379,1.12517768,57904.0,57903.0,0.01]
[1617953927860,1.12517768,57904.0,57903.0,0.31381043]
[1617953929961,1.12517768,57904.0,57903.0,1.31381043]
[1617953930360,1.12517768,57904.0,57903.0,0.31381043]
[1617953931962,1.12517768,57904.0,57903.0,1.31381043]
[1617953932262,1.12517768,57904.0,57903.0,0.31381043]
[1617953932462,1.12517768,57904.0,57903.0,1.31381043]
[1617953932763,1.12517768,57904.0,57903.0,0.31381043]
[1617953932963,1.12517768,57904.0,57903.0,1.31381043]
[1617953933263,1.12517768,57904.0,57903.0,0.31381043]
[1617953933865,1.12517768,57904.0,57903.0,3.61381043]
[1617953935468,1.12517768,57904.0,57903.0,4.61381043]
[1617953935767,1.12517768,57904.0,57903.0,3.61381043]
[1617953936772,1.12517768,57904.0,57903.0,4.61381043]
[1617953936971,1.12517768,57904.0,57903.0,3.61381043]
[1617953937373,0.67512692,57904.0,57903.0,4.97788013]
[1617953937874,0.92138091,57904.0,57903.0,4.97788013]
[1617953938174,0.67512692,57904.0,57903.0,4.97788013]
[1617953939175,0.67512692,57904.0,57903.0,5.42291834]
[1617953940496,0.30688517,57904.0,57903.0,5.42291834]
[1617953940990,0.75804577,57915.0,57903.0,5.42291834]
[1617953940991,0.45039007,57910.0,57903.0,5.42291834]
[1617953941412,0.45038619,57911.0,57909.0,0.77461966]
[1617953941590,0.45038619,57911.0,57909.0,1.77461966]
[1617953941785,0.45038619,57911.0,57910.0,0.99899316]
[1617953941982,0.45038619,57911.0,57910.0,1.99899316]
[1617953942390,1.12601751,57911.0,57910.0,1.99899316]
[1617953946584,0.67563132,57911.0,57910.0,1.63493863]
[1617953948184,0.67563132,57911.0,57910.0,1.99917689]
[1617953948784,0.61033132,57911.0,57910.0,1.99917689]
[1617953948985,0.59863132,57911.0,57910.0,1.63493863]
[1617953949187,0.58063132,57911.0,57910.0,1.63493863]
[1617953949385,0.82686142,57911.0,57910.0,1.63493863]
[1617953949789,0.58063132,57911.0,57910.0,1.63493863]
[1617953950287,0.10725655,57923.0,57910.0,1.27]
[1617953950786,0.45007787,57914.0,57913.0,0.30375852]
[1617953951288,0.45007787,57914.0,57913.0,0.31375852]
[1617953951587,0.45007787,57914.0,57913.0,0.01]
[1617953951588,0.75685846,57914.0,57913.0,0.01]
[1617953951987,0.30678059,57914.0,57913.0,0.30364297]
[1617953952392,0.30678059,57914.0,57913.0,0.57364297]
[1617953952590,0.28078059,57914.0,57913.0,0.57364297]
[1617953952992,0.52700522,57914.0,57913.0,0.57364297]
[1617953953590,0.28078059,57914.0,57913.0,0.57364297]
[1617953956596,0.24621758,57914.0,57913.0,0.57364297]
[1617953957096,0.44988113,57917.0,57913.0,0.57364297]
[1617953957296,0.44988113,57917.0,57916.0,0.10725655]
[1617953957497,0.44988113,57917.0,57916.0,0.23885655]
[1617953957696,0.44988289,57918.0,57916.0,0.50885655]
[1617953958597,0.44988383,57917.0,57916.0,0.50885655]
[1617953958798,0.44988383,57917.0,57916.0,3.91935655]
[1617953958999,0.69610123,57917.0,57916.0,3.91935655]
[1617953959406,0.44988256,57918.0,57916.0,3.91935655]
[1617953960803,0.44987476,57919.0,57916.0,3.91935655]
[1617953961610,0.44997738,57918.0,57916.0,3.91935655]
[1617953962507,0.44979772,57919.0,57916.0,3.91935655]
[1617953962808,0.24621522,57917.0,57916.0,3.91935655]
[1617953963308,0.44979772,57919.0,57916.0,3.91935655]
[1617953963607,0.24621385,57917.0,57916.0,3.91935655]
[1617953964210,0.44979772,57919.0,57916.0,0.50885655]
[1617953964412,0.44979772,57919.0,57918.0,3.4325]
[1617953964612,2.8273,57921.0,57918.0,3.4325]
[1617953964812,2.8273,57921.0,57918.0,3.7025]
[1617953965013,0.10725655,57923.0,57918.0,0.27]
[1617953965232,0.44980951,57919.0,57918.0,0.27]
[1617953965415,0.44980951,57919.0,57918.0,3.2092]
[1617953965814,0.44980951,57919.0,57918.0,3.4792]
[1617953966014,0.69603002,57919.0,57918.0,3.2092]
[1617953966416,0.69603002,57919.0,57918.0,3.4792]
[1617953966417,0.44980951,57919.0,57918.0,3.4792]
[1617953970523,0.44980951,57919.0,57918.0,3.59265]
[1617953971325,0.44982837,57920.0,57918.0,3.59265]
[1617953972624,2.7011,57919.0,57918.0,3.4792]
[1617953973035,2.94732295,57919.0,57918.0,3.4792]
[1617953973446,3.39741416,57919.0,57918.0,3.4792]
[1617953974436,3.76568981,57919.0,57918.0,3.4792]
[1617953976225,3.3155986,57919.0,57918.0,3.4792]
[1617953977928,3.76568646,57919.0,57918.0,3.4792]
[1617953979029,1.06458646,57919.0,57918.0,3.4792]
[1617953979229,0.6144986,57919.0,57918.0,3.4792]
[1617953979629,0.36827565,57919.0,57918.0,3.4792]
[1617953982836,0.67518595,57919.0,57918.0,3.78268977]
[1617953984138,0.67518595,57919.0,57918.0,0.57348977]
[1617953984337,3.45968595,57919.0,57918.0,0.57348977]
[1617953984538,3.45968595,57919.0,57918.0,0.93759437]
[1617953985238,3.7059045,57919.0,57918.0,0.93759437]
[1617953987739,3.7059045,57919.0,57918.0,1.93759437]
[1617953988140,3.7059045,57919.0,57918.0,0.93759437]
[1617953990442,3.7059045,57919.0,57918.0,1.93759437]
[1617953992447,0.9214045,57919.0,57918.0,1.93759437]
[1617953992851,0.9214045,57919.0,57918.0,4.84219437]
[1617953993250,0.67518595,57919.0,57918.0,4.84219437]
[1617953995454,1.12602639,57919.0,57918.0,4.84219437]
[1617953996753,0.67518595,57919.0,57918.0,4.84219437]
[1617953997253,1.12592715,57919.0,57918.0,4.84219437]
[1617954000656,4.62562715,57919.0,57918.0,4.84219437]
[1617954001357,4.42108911,57919.0,57918.0,3.84219437]
[1617954001758,4.87182402,57919.0,57918.0,3.84219437]
[1617954002161,4.42108911,57919.0,57918.0,3.84219437]
[1617954003060,4.87183015,57919.0,57918.0,3.84219437]
[1617954004162,5.01063015,57919.0,57918.0,0.93759437]
[1617954005663,5.01063015,57919.0,57918.0,0.57348977]
[1617954006062,5.21063015,57919.0,57918.0,0.57348977]
[1617954006462,5.01063015,57919.0,57918.0,0.57348977]
[1617954006666,5.52298427,57919.0,57918.0,0.57348977]
[1617954008269,5.52298427,57919.0,57918.0,0.27]
[1617954008684,6.03325875,57919.0,57917.0,0.27]
[1617954009071,6.03325875,57919.0,57918.0,0.27]
[1617954009272,4.14877448,57919.0,57917.0,0.27]
[1617954009672,4.14877448,57919.0,57912.0,0.36477013]
[1617954009673,4.14877448,57919.0,57918.0,0.27]
[1617954009873,4.14877448,57919.0,57916.0,0.27]
[1617954010072,5.78747208,57919.0,57916.0,0.27]
[1617954010272,5.78747208,57919.0,57914.0,0.27]
[1617954010472,0.67600142,57917.0,57914.0,0.27]
[1617954010672,0.67600142,57917.0,57913.0,0.3038241]
[1617954010673,1.63870445,57917.0,57913.0,0.3038241]
[1617954010873,0.61560869,57918.0,57915.0,0.27]
[1617954011173,0.61560869,57918.0,57914.0,0.27]
[1617954011374,1.6385706,57916.0,57914.0,0.27]
[1617954011775,1.74582715,57916.0,57915.0,3.274]
[1617954011974,0.10725655,57916.0,57915.0,3.274]
[1617954012273,2.68615655,57916.0,57915.0,0.27]
[1617954012475,4.57103562,57916.0,57915.0,0.27]
[1617954012674,4.57103562,57916.0,57914.0,0.27]
[1617954012874,4.94041734,57916.0,57914.0,0.27]
[1617954013075,4.94041734,57916.0,57915.0,0.27]
[1617954013275,2.36151734,57916.0,57914.0,0.27]
[1617954013475,2.25426522,57915.0,57914.0,0.27]
[1617954013676,2.25426522,57915.0,57914.0,3.3028]
[1617954013878,1.88488572,57915.0,57914.0,3.5728]
[1617954014477,1.37283859,57915.0,57914.0,3.87639486]
[1617954015876,1.37283859,57915.0,57914.0,3.98365141]
[1617954017478,1.12658559,57915.0,57914.0,3.98365141]
[1617954017877,1.37277583,57915.0,57914.0,3.98365141]
[1617954021080,1.37277583,57915.0,57914.0,3.68005655]
[1617954022384,1.37277583,57915.0,57914.0,3.98358066]
[1617954022986,1.37277583,57915.0,57914.0,3.68005655]
[1617954024186,1.52613583,57915.0,57914.0,3.68005655]
[1617954024386,0.15336,57915.0,57914.0,3.68005655]
[1617954024588,1.27914354,57915.0,57914.0,3.68005655]
[1617954025290,1.52533768,57915.0,57914.0,3.68005655]
[1617954025988,0.39955414,57915.0,57914.0,0.37725655]
[1617954026189,1.89462165,57915.0,57914.0,0.37725655]
[1617954026490,5.39582165,57915.0,57914.0,0.37725655]
[1617954026690,5.02653092,57915.0,57914.0,0.37725655]
[1617954026889,3.90075414,57915.0,57914.0,0.37725655]
[1617954027089,5.3958208,57915.0,57914.0,0.37725655]
[1617954030997,1.8946208,57915.0,57914.0,0.37725655]
[1617954031695,1.52533028,57915.0,57914.0,0.37725655]
[1617954034596,1.52533028,57915.0,57914.0,4.00055655]
[1617954036000,1.52533028,57915.0,57914.0,4.30398642]
[1617954036797,1.52533028,57915.0,57914.0,5.30398642]
[1617954038800,1.52533028,57915.0,57914.0,5.43121642]
[1617954039503,1.37197028,57915.0,57914.0,5.43121642]
[1617954039800,1.37197028,57915.0,57914.0,5.48231642]
[1617954040001,1.37197028,57915.0,57914.0,5.84558661]
[1617954040002,0.67548615,57915.0,57914.0,5.84558661]
[1617954041020,0.92166188,57915.0,57914.0,5.79448661]
[1617954041408,0.67548615,57915.0,57914.0,5.79448661]
[1617954047308,0.67548615,57915.0,57914.0,2.17118661]
[1617954048509,0.67548615,57915.0,57914.0,2.04395661]
[1617954049912,0.67548615,57915.0,57914.0,1.04395661]
[1617954050411,0.67548615,57915.0,57914.0,2.04395661]
[1617954051214,0.67548615,57915.0,57914.0,2.09645661]
[1617954053816,0.67548615,57915.0,57914.0,2.04395661]
[1617954054217,0.67548615,57915.0,57914.0,1.04395661]
[1617954054417,0.67548615,57915.0,57914.0,2.04395661]
[1617954055620,0.67548615,57915.0,57914.0,2.48790246]
[1617954056221,0.67548615,57915.0,57914.0,1.48790246]
[1617954056420,0.67548615,57915.0,57914.0,2.48790246]
[1617954056821,0.67548615,57915.0,57914.0,2.54010246]
[1617954057922,0.30704846,57915.0,57914.0,2.54010246]
[1617954059223,0.30704846,57915.0,57914.0,1.48790246]
[1617954059625,0.30704846,57915.0,57914.0,2.48790246]
[1617954060725,0.67572946,57915.0,57914.0,2.48790246]
[1617954061124,0.67572946,57915.0,57914.0,1.48790246]
[1617954062926,0.67572946,57915.0,57914.0,2.48790246]
[1617954063232,0.307244,57916.0,57914.0,2.99245351]
[1617954063433,0.01034032,57915.0,57914.0,1.99245351]
[1617954063826,0.01034032,57915.0,57914.0,4.67265351]
[1617954064028,0.0103402,57916.0,57914.0,5.67265351]
[1617954064433,0.0103402,57916.0,57915.0,1.0]
[1617954064639,0.0103402,57916.0,57915.0,2.76668375]
[1617954064826,0.0103402,57916.0,57915.0,3.03668375]
[1617954065028,0.30724322,57916.0,57915.0,3.03668375]
[1617954066131,0.47543869,57922.0,57915.0,2.53266846]
[1617954066432,0.47543869,57922.0,57918.0,1.0]
[1617954066633,0.47543869,57922.0,57921.0,0.11632755]
[1617954066830,0.47543869,57922.0,57921.0,1.11632755]
[1617954067031,0.47543869,57922.0,57921.0,1.12632755]
[1617954068130,0.47543869,57922.0,57921.0,1.2335841]
[1617954068730,0.47543869,57922.0,57921.0,0.2335841]
[1617954068929,0.47543869,57922.0,57921.0,1.2335841]
[1617954072737,0.10725655,57922.0,57921.0,1.2335841]
[1617954075140,0.44998181,57927.0,57921.0,0.2335841]
[1617954075541,0.44998181,57927.0,57926.0,3.56576]
[1617954075867,0.44991927,57929.0,57926.0,4.56576]
[1617954076063,0.44991927,57929.0,57926.0,3.83576]
[1617954076280,0.44969245,57930.0,57928.0,0.10725655]
[1617954076542,0.44968671,57931.0,57928.0,1.10725655]
[1617954076742,0.44968671,57931.0,57929.0,0.27]
[1617954076943,0.44968671,57931.0,57930.0,1.0]
[1617954077143,0.44968671,57931.0,57930.0,4.0295]
[1617954077444,0.44968671,57931.0,57930.0,4.2995]
[1617954078349,0.44967749,57932.0,57930.0,4.2995]
[1617954078745,0.44967749,57932.0,57930.0,3.2995]
[1617954080049,0.44967749,57932.0,57930.0,0.27]
[1617954080246,0.10725655,57931.0,57930.0,0.27]
[1617954080447,0.10725655,57931.0,57930.0,2.9597]
[1617954080648,0.10725655,57931.0,57930.0,3.9597]
[1617954080947,0.10725655,57931.0,57930.0,4.2297]
[1617954081148,0.55696939,57931.0,57930.0,3.9597]
[1617954081348,0.55696939,57931.0,57930.0,4.2297]
[1617954081749,0.55696939,57931.0,57930.0,3.2297]
[1617954082751,0.55696939,57931.0,57930.0,4.2297]
[1617954083048,0.80309801,57931.0,57930.0,4.2297]
[1617954083349,0.55696939,57931.0,57930.0,4.2297]
[1617954083749,0.80309813,57931.0,57930.0,4.2297]
[1617954086452,0.35338529,57931.0,57930.0,4.2297]
[1617954091959,1.17147453,57931.0,57930.0,3.2297]
[1617954092358,0.92534579,57931.0,57930.0,3.2297]
[1617954092759,1.17148167,57931.0,57930.0,3.2297]
[1617954094765,1.17148167,57931.0,57930.0,4.2297]
[1617954095466,1.47829047,57931.0,57930.0,4.2297]
[1617954095767,1.47829047,57931.0,57930.0,3.2297]
[1617954095970,1.47829047,57931.0,57930.0,3.53156442]
[1617954096468,1.47829047,57931.0,57930.0,0.57186442]
[1617954098169,1.47829047,57931.0,57930.0,0.27]
[1617954098571,1.47829047,57931.0,57929.0,1.57202435]
[1617954098768,1.47829047,57931.0,57930.0,1.0]
[1617954098970,1.47829047,57931.0,57930.0,1.41884]
[1617954099470,1.47829047,57931.0,57930.0,1.72083433]
[1617954099969,1.47829047,57931.0,57930.0,4.30243433]
[1617954100370,1.23215459,57931.0,57930.0,4.30243433]
[1617954100769,1.47829151,57931.0,57930.0,4.30243433]
[1617954101872,1.47829151,57931.0,57930.0,3.30243433]
[1617954102273,1.47829151,57931.0,57930.0,4.30243433]
[1617954108084,1.47829151,57931.0,57930.0,4.66464121]
[1617954108585,1.47829151,57931.0,57930.0,4.30243433]
[1617954108988,1.47829151,57931.0,57930.0,4.66433568]
[1617954110489,1.37103496,57931.0,57930.0,4.66433568]
[1617954110689,0.9210961,57931.0,57930.0,4.66433568]
[1617954111390,0.67495918,57931.0,57930.0,4.66433568]
[1617954111789,0.92108876,57931.0,57930.0,4.66433568]
[1617954112591,0.67495918,57931.0,57930.0,4.66433568]
[1617954113292,0.67495918,57931.0,57930.0,2.08273568]
[1617954113492,0.67495918,57931.0,57930.0,3.59633568]
[1617954113692,0.67495918,57931.0,57930.0,4.59633568]
[1617954114094,0.67495918,57931.0,57930.0,5.03883176]
[1617954120806,0.3068088,57931.0,57930.0,5.03883176]
[1617954124107,0.1842088,57931.0,57930.0,5.03883176]
[1617954124611,0.36849929,57935.0,57930.0,5.03883176]
[1617954125052,0.35609929,57935.0,57932.0,1.0]
[1617954125210,0.35609929,57935.0,57934.0,0.44216545]
[1617954125411,0.35609929,57935.0,57934.0,4.70026545]
[1617954125612,0.35609929,57935.0,57934.0,4.71026545]
[1617954126012,0.45039941,57940.0,57934.0,4.71026545]
[1617954126013,0.45039941,57940.0,57934.0,4.86407707]
[1617954126322,0.45039941,57940.0,57934.0,1.60597707]
[1617954126515,0.45039941,57940.0,57939.0,1.10725655]
[1617954127016,0.45039941,57940.0,57939.0,3.94258092]
[1617954128715,0.10725655,57942.0,57939.0,3.94258092]
[1617954129114,0.10725655,57942.0,57941.0,0.7539014]
[1617954129313,0.10725655,57942.0,57940.0,1.44207733]
[1617954129515,0.10725655,57942.0,57941.0,0.27]
[1617954131020,0.10725655,57942.0,57941.0,0.71185945]
[1617954135521,0.10725655,57942.0,57941.0,0.27]
[1617954136123,0.02055655,57942.0,57941.0,0.27]